fUST/lending_fUST_20240808
["ID","MTS","AMOUNT","RATE_DAILY","PERIOD"]
[334425888,1723085447610,-500.0,0.00027671,7]
[334425889,1723085447619,-500.0,0.00027671,7]
[334425890,1723085447629,-500.0,0.00027671,7]
[334425891,1723085447640,-1029.95,0.00027671,7]
[334425892,1723085447651,-151.0,0.00027671,7]
[334425893,1723085447661,-151.0,0.00027671,7]
[334425894,1723085447671,-500.0,0.00027671,7]
[334425895,1723085447681,-500.0,0.00027671,7]
[334425897,1723085447691,-593.19,0.00027671,7]
[334425899,1723085447701,-503.02,0.00027671,7]
[334425901,1723085447712,-500.0,0.00027671,7]
[334425904,1723085447724,-508.06,0.00027671,7]
[334425906,1723085447733,-151.0,0.00027671,7]
[334425908,1723085447744,-157.870824,0.00027671,7]
[334425910,1723085447756,-1405.71,0.00027671,7]
[334425911,1723085447767,-500.0,0.00027671,7]
[334425912,1723085447776,-1448.58,0.00027671,7]
[334425913,1723085447785,-1383.42,0.00027671,7]
[334425914,1723085447795,-500.0,0.00027671,7]
[334425915,1723085447805,-1057.45,0.00027671,7]
[334425916,1723085447815,-500.0,0.00027671,7]
[334425917,1723085447824,-503.02876205,0.00027671,7]
[334425918,1723085447834,-500.0,0.00027671,7]
[334425919,1723085447843,-169.1379668,0.00027671,7]
[334425920,1723085447853,-500.0,0.00027671,7]
[334425921,1723085447863,-766.37,0.00027671,7]
[334425922,1723085447872,-612.63,0.00027671,7]
[334425923,1723085447882,-500.0,0.00027671,7]
[334425924,1723085447892,-500.0,0.00027671,7]
[334425925,1723085447903,-500.0,0.00027671,7]
[334425927,1723085447914,-500.0,0.00027671,7]
[334425929,1723085447925,-500.0,0.00027671,7]
[334425932,1723085447934,-500.0,0.00027671,7]
[334425935,1723085447944,-500.0,0.00027671,7]
[334425936,1723085447954,-500.0,0.00027671,7]
[334425938,1723085447963,-500.0,0.00027671,7]
[334425940,1723085447974,-151.0,0.00027671,7]
[334425942,1723085447983,-156.565714,0.00027671,7]
[334425944,1723085447995,-532.16,0.00027671,7]
[334425946,1723085448005,-555.98,0.00027671,7]
[334425947,1723085448015,-500.0,0.00027671,7]
[334425949,1723085448024,-500.0,0.00027671,7]
[334425951,1723085448034,-151.0,0.00027671,7]
[334425952,1723085448043,-151.0,0.00027671,7]
[334425954,1723085448053,-500.0,0.00027671,7]
[334425956,1723085448063,-817.81,0.00027671,7]
[334425958,1723085448072,-151.0,0.00027671,7]
[334425960,1723085448082,-151.0,0.00027671,7]
[334425962,1723085448091,-604.19,0.00027671,7]
[334425964,1723085448101,-500.0,0.00027671,7]
[334425966,1723085448112,-500.0,0.00027671,7]
[334425968,1723085448121,-504.08853534,0.00027671,7]
[334425969,1723085448130,-536.87,0.00027671,7]
[334425971,1723085448139,-500.0,0.00027671,7]
[334425973,1723085448149,-500.0,0.00027671,7]
[334425975,1723085448159,-500.0,0.00027671,7]
[334425977,1723085448168,-939.37,0.00027671,7]
[334425978,1723085448177,-500.0,0.00027671,7]
[334425979,1723085448187,-1110.44,0.00027671,7]
[334425980,1723085448196,-500.0,0.00027671,7]
[334425981,1723085448206,-500.0,0.00027671,7]
[334425982,1723085448216,-500.0,0.00027671,7]
[334425983,1723085448225,-500.0,0.00027671,7]
[334425984,1723085448235,-500.0,0.00027671,7]
[334425985,1723085448245,-1086.63,0.00027671,7]
[334425986,1723085448255,-151.0,0.00027671,7]
[334425987,1723085448264,-153.975627,0.00027671,7]
[334425988,1723085448274,-554.65,0.00027671,7]
[334425989,1723085448284,-1295.66,0.00027671,7]
[334425990,1723085448294,-500.0,0.00027671,7]
[334425991,1723085448303,-500.0,0.00027671,7]
[334425992,1723085448313,-151.0,0.00027671,7]
[334425993,1723085448322,-151.0,0.00027671,7]
[334425994,1723085448331,-1197.56,0.00027671,7]
[334425995,1723085448341,-500.0,0.00027671,7]
[334425996,1723085448350,-634.62,0.00027671,7]
[334425997,1723085448359,-1311.8,0.00027671,7]
[334425998,1723085448368,-500.0,0.00027671,7]
[334425999,1723085448377,-668.39,0.00027671,7]
[334426000,1723085448387,-755.79,0.00027671,7]
[334426001,1723085448396,-500.0,0.00027671,7]
[334426002,1723085448406,-1739.37,0.00027671,7]
[334426003,1723085448415,-500.0,0.00027671,7]
[334426004,1723085448425,-151.0,0.00027671,7]
[334426005,1723085448435,-151.0,0.00027671,7]
[334426006,1723085448444,-455.31374166,0.00027671,7]
[334426007,1723085448454,-222.612632,0.00027671,7]
[334426008,1723085448464,-500.0,0.00027671,7]
[334426009,1723085448476,-500.0,0.00027671,7]
[334426010,1723085448485,-1741.79,0.00027671,7]
[334426011,1723085448496,-500.0,0.00027671,7]
[334426012,1723085448506,-2650.29,0.00027671,7]
[334426013,1723085448517,-250.245087,0.00027671,7]
[334426014,1723085448526,-500.0,0.00027671,7]
[334426015,1723085448536,-726.17,0.00027671,7]
[334426016,1723085448545,-1827.29,0.00027671,7]
[334426017,1723085448555,-500.0,0.00027671,7]
[334426018,1723085448564,-2836.12,0.00027671,7]
[334426019,1723085448575,-2008.49,0.00027671,7]
[334426020,1723085448584,-200.0,0.00027671,7]
[334426021,1723085448596,-500.0,0.00027671,7]
[334426022,1723085448605,-3816.87,0.00027671,7]
[334426023,1723085448615,-151.0,0.00027671,7]
[334426024,1723085448624,-151.0,0.00027671,7]
[334426025,1723085448633,-500.0,0.00027671,7]
[334426026,1723085448643,-151.0,0.00027671,7]
[334426027,1723085448652,-500.0,0.00027671,7]
[334426028,1723085448661,-151.0,0.00027671,7]
[334426029,1723085448671,-2535.95,0.00027671,7]
[334426030,1723085448680,-500.0,0.00027671,7]
[334426031,1723085448689,-500.0,0.00027671,7]
[334426032,1723085448700,-1079.3,0.00027671,7]
[334426033,1723085448709,-500.0,0.00027671,7]
[334426034,1723085448719,-500.0,0.00027671,7]
[334426035,1723085448728,-500.0,0.00027671,7]
[334426036,1723085448738,-500.0,0.00027671,7]
[334426037,1723085448750,-500.0,0.00027671,7]
[334426038,1723085448759,-1100.85,0.00027671,7]
[334426039,1723085448769,-1621.94,0.00027671,7]
[334426040,1723085448779,-500.0,0.00027671,7]
[334426041,1723085448788,-2084.44,0.00027671,7]
[334426042,1723085448798,-500.0,0.00027671,7]
[334426043,1723085448808,-522.1,0.00027671,7]
[334426044,1723085448817,-565.22,0.00027671,7]
[334426045,1723085448827,-500.0,0.00027671,7]
[334426046,1723085448836,-2789.94,0.00027671,7]
[334426047,1723085448845,-500.0,0.00027671,7]
[334426048,1723085448855,-500.0,0.00027671,7]
[334426049,1723085448865,-500.0,0.00027671,7]
[334426050,1723085448874,-500.0,0.00027671,7]
[334426051,1723085448884,-2589.35,0.00027671,7]
[334426052,1723085448893,-500.0,0.00027671,7]
[334426053,1723085448902,-613.68,0.00027671,7]
[334426054,1723085448912,-500.0,0.00027671,7]
[334426055,1723085448921,-934.0,0.00027671,7]
[334426056,1723085448931,-500.0,0.00027671,7]
[334426057,1723085448940,-500.0,0.00027671,7]
[334426058,1723085448949,-500.0,0.00027671,7]
[334426059,1723085448958,-770.67,0.00027671,7]
[334426060,1723085448967,-578.33,0.00027671,7]
[334426061,1723085448976,-500.0,0.00027671,7]
[334426062,1723085448985,-503.58130781,0.00027671,7]
[334426063,1723085448995,-500.0,0.00027671,7]
[334426064,1723085449008,-500.0,0.00027671,7]
[334426065,1723085449017,-678.93,0.00027671,7]
[334426066,1723085449027,-12925.87,0.00027671,7]
[334426067,1723085449036,-2318.06,0.00027671,7]
[334426068,1723085449045,-500.0,0.00027671,7]
[334426069,1723085449055,-937.19,0.00027671,7]
[334426070,1723085449064,-571.04,0.00027671,7]
[334426071,1723085449074,-154.596396,0.00027671,7]
[334426072,1723085449084,-154.596396,0.00027671,7]
[334426073,1723085449093,-500.0,0.00027671,7]
[334426074,1723085449102,-721.21,0.00027671,7]
[334426075,1723085449112,-154.596396,0.00027671,7]
[334426076,1723085449121,-154.596396,0.00027671,7]
[334426077,1723085449131,-1006.04,0.00027671,7]
[334426078,1723085449140,-1078.15,0.00027671,7]
[334426079,1723085449149,-500.0,0.00027671,7]
[334426080,1723085449158,-629.28,0.00027671,7]
[334426081,1723085449167,-3442.38,0.00027671,7]
[334426082,1723085449177,-500.0,0.00027671,7]
[334426083,1723085449186,-3808.83,0.00027671,7]
[334426084,1723085449195,-500.0,0.00027671,7]
[334426085,1723085449205,-500.0,0.00027671,7]
[334426086,1723085449214,-553.83,0.00027671,7]
[334426087,1723085449223,-1171.11,0.00027671,7]
[334426088,1723085449233,-1006.34,0.00027671,7]
[334426089,1723085449242,-151.0,0.00027671,7]
[334426090,1723085449256,-151.0,0.00027671,7]
[334426091,1723085449266,-65.24377321,0.00027671,7]
[334426092,1723085449478,-1404.38622679,0.00027671,7]
[334426093,1723085449489,-500.0,0.00027671,7]
[334426094,1723085449504,-2253.22,0.00027671,7]
[334426095,1723085449516,-500.0,0.00027671,7]
[334426096,1723085449526,-500.0,0.00027671,7]
[334426097,1723085449537,-500.0,0.00027671,7]
[334426098,1723085449547,-500.0,0.00027671,7]
[334426099,1723085449557,-1118.87,0.00027671,7]
[334426100,1723085449567,-1044.57,0.00027671,7]
[334426101,1723085449576,-500.0,0.00027671,7]
[334426102,1723085449585,-151.0,0.00027671,7]
[334426103,1723085449596,-151.0,0.00027671,7]
[334426104,1723085449606,-738.35,0.00027671,7]
[334426105,1723085449615,-411.99355948,0.00027671,7]
[334426106,1723085449628,-312.2633,0.00027671,7]
[334426107,1723085450608,-657.50907707,0.00027671,7]
[334426108,1723085450672,-348.89256572,0.00027671,7]
[334426109,1723085451016,273.37336231,9.9e-05,2]
[334426110,1723085451205,-500.0,0.00027397,7]
[334426111,1723085451217,-500.82657347,0.00027397,7]
[334426112,1723085451228,-3431.44744255,0.00027671,7]
[334426113,1723085451241,-320.0,0.00027671,7]
[334426114,1723085461757,273.37336231,9.9e-05,2]
[334426115,1723085477594,273.37336231,9.9e-05,2]
[334426116,1723085484606,154.83151317,0.00012,2]
[334426117,1723085492883,273.37336231,9.9e-05,2]
[334426118,1723085508328,273.37336231,9.9e-05,2]
[334426119,1723085524160,273.37336231,9.9e-05,2]
[334426120,1723085539972,273.37336231,9.9e-05,2]
[334426121,1723085555174,273.37336231,9.9e-05,2]
[334426122,1723085564697,510.09008139,0.00012,2]
[334426123,1723085571081,273.37336231,9.9e-05,2]
[334426124,1723085586801,273.37336231,9.9e-05,2]
[334426125,1723085602929,273.37336231,9.9e-05,2]
[334426126,1723085618699,273.37336231,9.9e-05,2]
[334426127,1723085618843,501.598,0.0001401,2]
[334426128,1723085635158,273.37336231,9.9e-05,2]
[334426129,1723085639865,451.84605212,0.00025,10]
[334426130,1723085651514,2279.69416005,0.00025,10]
[334426131,1723085661297,4000.0,0.00015,2]
[334426132,1723085676642,166.64826,0.00014247,2]
[334426133,1723085679076,10000.0,0.0002,10]
[334426134,1723085727783,10000.0,0.0002,10]
[334426135,1723085736614,10000.0,0.00015,2]
[334426136,1723085838876,273.37336231,9.9e-05,2]
[334426137,1723085854696,273.37336231,9.9e-05,2]
[334426138,1723085870443,273.37336231,9.9e-05,2]
[334426140,1723085887498,273.37336231,9.9e-05,2]
[334426141,1723085903324,273.37336231,9.9e-05,2]
[334426142,1723085918687,273.37336231,9.9e-05,2]
[334426144,1723085934465,273.37336231,9.9e-05,2]
[334426145,1723085949802,273.37336231,9.9e-05,2]
[334426146,1723085965060,273.37336231,9.9e-05,2]
[334426147,1723085980840,273.37336231,9.9e-05,2]
[334426148,1723085997146,273.37336231,9.9e-05,2]
[334426149,1723086012857,273.37336231,9.9e-05,2]
[334426150,1723086028459,273.37336231,9.9e-05,2]
[334426151,1723086043648,273.37336231,9.9e-05,2]
[334426152,1723086059422,273.37336231,9.9e-05,2]
[334426153,1723086075875,273.37336231,9.9e-05,2]
[334426154,1723086091855,273.37336231,9.9e-05,2]
[334426155,1723086107711,273.37336231,9.9e-05,2]
[334426156,1723086123040,273.37336231,9.9e-05,2]
[334426157,1723086138375,273.37336231,9.9e-05,2]
[334426158,1723086153638,273.37336231,9.9e-05,2]
[334426159,1723086168859,273.37336231,9.9e-05,2]
[334426160,1723086184172,273.37336231,9.9e-05,2]
[334426161,1723086200187,273.37336231,9.9e-05,2]
[334426162,1723086216946,273.37336231,9.9e-05,2]
[334426163,1723086232678,273.37336231,9.9e-05,2]
[334426164,1723086248571,273.37336231,9.9e-05,2]
[334426165,1723086264470,273.37336231,9.9e-05,2]
[334426166,1723086280978,273.37336231,9.9e-05,2]
[334426167,1723086296176,273.37336231,9.9e-05,2]
[334426168,1723086311602,273.37336231,9.9e-05,2]
[334426169,1723086326891,273.37336231,9.9e-05,2]
[334426170,1723086342704,273.37336231,9.9e-05,2]
[334426171,1723086358417,273.37336231,9.9e-05,2]
[334426172,1723086374201,273.37336231,9.9e-05,2]
[334426173,1723086390506,273.37336231,9.9e-05,2]
[334426174,1723086406640,273.37336231,9.9e-05,2]
[334426175,1723086422472,273.37336231,9.9e-05,2]
[334426176,1723086438247,273.37336231,9.9e-05,2]
[334426177,1723086454061,273.37336231,9.9e-05,2]
[334426178,1723086469894,273.37336231,9.9e-05,2]
[334426179,1723086485300,273.37336231,9.9e-05,2]
[334426180,1723086501116,273.37336231,9.9e-05,2]
[334426181,1723086516313,273.37336231,9.9e-05,2]
[334426182,1723086531692,273.37336231,9.9e-05,2]
[334426183,1723086548033,273.37336231,9.9e-05,2]
[334426184,1723086549203,-300.0,0.00019999,2]
[334426185,1723086549225,-154.68290005,0.0002,2]
[334426186,1723086549249,-646.10262235,0.0002,2]
[334426187,1723086563552,273.37336231,9.9e-05,2]
[334426188,1723086579289,273.37336231,9.9e-05,2]
[334426189,1723086595214,273.37336231,9.9e-05,2]
[334426190,1723086610460,273.37336231,9.9e-05,2]
[334426191,1723086618983,166.64826,0.00014247,2]
[334426192,1723086625691,273.37336231,9.9e-05,2]
[334426233,1723086632884,-203.7689511,0.00019899,2]
[334426235,1723086632896,-798.25517148,0.0002,2]
[334426237,1723086632908,-156.42647328,0.0002,2]
[334426239,1723086632918,-356.88708534,0.0002,2]
[334426349,1723086639024,-10133.77956495,0.0002,2]
[334426351,1723086639034,-154.68290005,0.0002,2]
[334426353,1723086639043,-4183.4711297,0.0002,2]
[334426355,1723086639053,-294.2333485,0.0002,2]
[334426356,1723086639062,-1626.61800287,0.0002,2]
[334426357,1723086639072,-160.64700877,0.00022,2]
[334426359,1723086639081,-881.97401853,0.0002217,2]
[334426361,1723086639091,-402.58073778,0.00025,2]
[334426363,1723086639101,-245.74416654,0.00025,2]
[334426365,1723086639110,-191.845626,0.00025013,2]
[334426366,1723086639119,-216.4664683,0.00025476,2]
[334426368,1723086639128,-200.0,0.00026027,2]
[334426370,1723086639137,-276.626,0.00026406,2]
[334426372,1723086639146,-644.433,0.00026406,2]
[334426374,1723086639156,-1155.261969,0.00026421,2]
[334426376,1723086639165,-10000.0,0.000265,3]
[334426378,1723086639175,-219.1867584,0.00026849,2]
[334426380,1723086639184,-4201.60785348,0.00027098,2]
[334426382,1723086639193,-609.8978774,0.00027197,2]
[334426384,1723086639203,-609.89787736,0.00027222,2]
[334426386,1723086639213,-4201.60785348,0.00027223,2]
[334426388,1723086639222,-609.89787736,0.00027247,2]
[334426390,1723086639231,-609.89787736,0.00027272,2]
[334426392,1723086639241,-1118.62,0.00027286,3]
[334426394,1723086639251,-932.18,0.00027286,3]
[334426396,1723086639260,-776.82,0.00027286,3]
[334426398,1723086639269,-23407.694031,0.00027287,3]
[334426400,1723086639278,-500.0,0.00027296,2]
[334426402,1723086639288,-180.11647714,0.00027296,2]
[334426404,1723086639297,-500.0,0.00027296,2]
[334426406,1723086639306,-500.0,0.00027296,2]
[334426408,1723086639316,-500.0,0.00027296,2]
[334426410,1723086639325,-354.99043119,0.00027296,2]
[334426412,1723086639334,-45377.28566836,0.00027296,2]
[334426414,1723086639343,-52618.41441177,0.00027297,3]
[334426416,1723086639353,-2000.0,0.00027297,2]
[334426418,1723086639362,-609.89787736,0.00027297,2]
[334426420,1723086639372,-1659.74859903,0.00027297,2]
[334426421,1723086639381,-156.295872,0.000273,6]
[334426423,1723086639390,-153.0,0.00027338,2]
[334426425,1723086639399,-105334.62314,0.00027387,3]
[334426426,1723086639408,-500.0,0.00027397,7]
[334426428,1723086639417,-502.2975051,0.00027397,7]
[334426430,1723086639427,-1101.29,0.00027397,7]
[334426432,1723086639436,-500.0,0.00027397,7]
[334426434,1723086639446,-500.0,0.00027397,2]
[334426436,1723086639454,-466.75252687,0.00027397,2]
[334426438,1723086639464,-500.0,0.00027397,7]
[334426439,1723086639473,-500.0,0.00027397,7]
[334426440,1723086639483,-500.0,0.00027397,7]
[334426441,1723086639492,-506.64,0.00027397,7]
[334426442,1723086639502,-500.0,0.00027397,2]
[334426443,1723086639511,-500.0,0.00027397,7]
[334426444,1723086639520,-557.5823597,0.00027397,7]
[334426445,1723086639529,-259.20346555,0.00027397,7]
[334426446,1723086639539,-502.44,0.00027397,7]
[334426447,1723086639548,-500.0,0.00027397,7]
[334426448,1723086639557,-500.0,0.00027397,7]
[334426449,1723086639566,-503.31607634,0.00027397,7]
[334426450,1723086639575,-500.0,0.00027397,7]
[334426451,1723086639585,-500.0,0.00027397,7]
[334426452,1723086639594,-500.0,0.00027397,7]
[334426453,1723086639603,-503.92345696,0.00027397,7]
[334426454,1723086639613,-543.25624282,0.00027397,7]
[334426455,1723086639622,-505.05980849,0.00027397,7]
[334426456,1723086639631,-500.0,0.00027397,7]
[334426457,1723086639641,-504.14405315,0.00027397,7]
[334426458,1723086639650,-503.08748203,0.00027397,7]
[334426459,1723086639659,-500.0,0.00027397,7]
[334426460,1723086639669,-500.0,0.00027397,7]
[334426461,1723086639678,-500.0,0.00027397,7]
[334426462,1723086639688,-500.0,0.00027397,7]
[334426463,1723086639697,-500.0,0.00027397,7]
[334426464,1723086639706,-533.88832438,0.00027397,7]
[334426465,1723086639717,-502.43835834,0.00027397,7]
[334426466,1723086639726,-500.0,0.00027397,7]
[334426467,1723086639735,-500.0,0.00027397,7]
[334426468,1723086639745,-500.0,0.00027397,7]
[334426469,1723086639754,-646.16877691,0.00027397,7]
[334426470,1723086639764,-279.90491616,0.00027397,7]
[334426471,1723086639773,-444.26446791,0.00027397,7]
[334426472,1723086639782,-503.60324187,0.00027397,7]
[334426473,1723086639791,-501.43000007,0.00027397,7]
[334426474,1723086639801,-500.0,0.00027397,7]
[334426475,1723086639811,-500.0,0.00027397,7]
[334426476,1723086639820,-503.88671364,0.00027397,7]
[334426477,1723086639829,-500.0,0.00027397,7]
[334426478,1723086639839,-504.50701379,0.00027397,7]
[334426479,1723086639848,-506.38312889,0.00027397,7]
[334426480,1723086639860,-500.0,0.00027397,7]
[334426481,1723086639872,-500.0,0.00027397,7]
[334426482,1723086639882,-347.03448498,0.00027397,7]
[334426483,1723086639891,-500.0,0.00027397,7]
[334426484,1723086639901,-500.76014814,0.00027397,7]
[334426485,1723086639912,-504.395212,0.00027397,7]
[334426486,1723086639923,-500.0,0.00027397,7]
[334426487,1723086639932,-500.0,0.00027397,7]
[334426488,1723086639943,-500.0,0.00027397,7]
[334426489,1723086639952,-500.0,0.00027397,7]
[334426490,1723086639963,-503.48049863,0.00027397,7]
[334426491,1723086639974,-500.0,0.00027397,7]
[334426492,1723086639983,-517.03596231,0.00027397,7]
[334426493,1723086639992,-500.0,0.00027397,7]
[334426494,1723086640001,-500.0,0.00027397,7]
[334426495,1723086640011,-942.85,0.00027397,7]
[334426496,1723086640020,-500.0,0.00027397,7]
[334426497,1723086640030,-500.0,0.00027397,7]
[334426498,1723086640040,-500.0,0.00027397,7]
[334426499,1723086640050,-500.0,0.00027397,7]
[334426500,1723086640059,-500.0,0.00027397,7]
[334426501,1723086640069,-500.0,0.00027397,7]
[334426502,1723086640079,-378.30432144,0.00027397,7]
[334426503,1723086640088,-526.65,0.00027397,7]
[334426504,1723086640097,-500.0,0.00027397,7]
[334426505,1723086640107,-348.45745731,0.00027397,7]
[334426506,1723086640116,-501.07263207,0.00027397,7]
[334426507,1723086640125,-678.87,0.00027397,7]
[334426508,1723086640135,-500.0,0.00027397,7]
[334426509,1723086640145,-500.0,0.00027397,7]
[334426510,1723086640155,-500.0,0.00027397,7]
[334426511,1723086640164,-500.0,0.00027397,7]
[334426512,1723086640173,-505.43552066,0.00027397,7]
[334426513,1723086640183,-502.23178626,0.00027397,7]
[334426514,1723086640193,-502.07903161,0.00027397,7]
[334426515,1723086640202,-504.29775937,0.00027397,7]
[334426516,1723086640211,-952.38,0.00027397,7]
[334426517,1723086640221,-500.0,0.00027397,7]
[334426518,1723086640230,-500.0,0.00027397,7]
[334426519,1723086640239,-501.88127732,0.00027397,7]
[334426520,1723086640248,-500.0,0.00027397,7]
[334426521,1723086640257,-500.0,0.00027397,7]
[334426522,1723086640266,-500.82578428,0.00027397,7]
[334426523,1723086640276,-500.0,0.00027397,7]
[334426524,1723086640285,-601.31,0.00027397,7]
[334426525,1723086640294,-500.0,0.00027397,7]
[334426526,1723086640303,-799.33,0.00027397,7]
[334426527,1723086640313,-500.0,0.00027397,7]
[334426528,1723086640322,-501.13023387,0.00027397,7]
[334426529,1723086640333,-505.33441862,0.00027397,7]
[334426530,1723086640342,-500.0,0.00027397,7]
[334426531,1723086640352,-500.0,0.00027397,7]
[334426532,1723086640362,-1018.43,0.00027397,7]
[334426533,1723086640374,-500.0,0.00027397,7]
[334426534,1723086640385,-578.58,0.00027397,7]
[334426535,1723086640396,-501.32944552,0.00027397,7]
[334426536,1723086640406,-500.0,0.00027397,7]
[334426537,1723086640418,-500.0,0.00027397,7]
[334426538,1723086640429,-503.02876205,0.00027397,7]
[334426539,1723086640440,-500.0,0.00027397,7]
[334426540,1723086640450,-1087.92,0.00027397,7]
[334426541,1723086640463,-500.0,0.00027397,7]
[334426542,1723086640473,-201.53114008,0.00027397,7]
[334426543,1723086640484,-502.61623539,0.00027397,7]
[334426544,1723086640494,-1193.93,0.00027397,7]
[334426545,1723086640504,-500.0,0.00027397,7]
[334426546,1723086640514,-500.0,0.00027397,7]
[334426547,1723086640525,-500.0,0.00027397,7]
[334426548,1723086640535,-500.0,0.00027397,7]
[334426549,1723086640545,-500.0,0.00027397,7]
[334426550,1723086640555,-500.0,0.00027397,7]
[334426551,1723086640565,-500.0,0.00027397,7]
[334426552,1723086640575,-500.0,0.00027397,7]
[334426553,1723086640585,-500.0,0.00027397,7]
[334426554,1723086640595,-500.0,0.00027397,7]
[334426555,1723086640604,-500.0,0.00027397,7]
[334426556,1723086640614,-500.0,0.00027397,7]
[334426557,1723086640624,-500.0,0.00027397,7]
[334426558,1723086640634,-234.23023069,0.00027397,7]
[334426559,1723086640643,-500.0,0.00027397,7]
[334426560,1723086640653,-500.0,0.00027397,7]
[334426561,1723086640663,-500.0,0.00027397,7]
[334426562,1723086640672,-1025.81,0.00027397,7]
[334426563,1723086640682,-631.4,0.00027397,7]
[334426564,1723086640691,-500.0,0.00027397,7]
[334426565,1723086640701,-504.08853534,0.00027397,7]
[334426566,1723086640710,-500.0,0.00027397,7]
[334426567,1723086640723,-500.0,0.00027397,7]
[334426568,1723086640732,-500.0,0.00027397,7]
[334426569,1723086640742,-500.0,0.00027397,7]
[334426571,1723086640752,-503.60581434,0.00027397,7]
[334426574,1723086640763,-502.39251373,0.00027397,7]
[334426576,1723086640773,-500.0,0.00027397,7]
[334426578,1723086640783,-502.2114673,0.00027397,7]
[334426580,1723086640792,-500.0,0.00027397,7]
[334426582,1723086640802,-500.0,0.00027397,7]
[334426584,1723086640812,-350.66371931,0.00027397,7]
[334426586,1723086640821,-500.0,0.00027397,7]
[334426588,1723086640831,-500.0,0.00027397,7]
[334426590,1723086640841,-500.0,0.00027397,7]
[334426591,1723086640851,-500.0,0.00027397,7]
[334426593,1723086640862,-503.30511167,0.00027397,7]
[334426595,1723086640876,-500.0,0.00027397,7]
[334426597,1723086640886,-500.0,0.00027397,7]
[334426599,1723086640895,-500.0,0.00027397,7]
[334426601,1723086640906,-500.0,0.00027397,7]
[334426603,1723086640916,-378.1654324,0.00027397,7]
[334426605,1723086640926,-500.0,0.00027397,7]
[334426607,1723086640936,-552.59,0.00027397,7]
[334426609,1723086640947,-500.0,0.00027397,7]
[334426611,1723086640957,-500.0,0.00027397,7]
[334426613,1723086640968,-500.0,0.00027397,7]
[334426615,1723086640979,-200.56675743,0.00027397,7]
[334426617,1723086640988,-506.54206553,0.00027397,7]
[334426619,1723086640997,-500.0,0.00027397,7]
[334426621,1723086641007,-500.0,0.00027397,7]
[334426624,1723086641018,-500.0,0.00027397,7]
[334426626,1723086641028,-820.74,0.00027397,7]
[334426627,1723086641038,-500.0,0.00027397,7]
[334426629,1723086641047,-500.0,0.00027397,7]
[334426631,1723086641058,-500.0,0.00027397,7]
[334426634,1723086641067,-500.0,0.00027397,7]
[334426636,1723086641077,-500.0,0.00027397,7]
[334426638,1723086641087,-635.76,0.00027397,7]
[334426640,1723086641097,-500.0,0.00027397,7]
[334426642,1723086641106,-500.0,0.00027397,7]
[334426644,1723086641116,-503.62180148,0.00027397,7]
[334426646,1723086641126,-475.08023048,0.00027397,7]
[334426648,1723086641136,-200.0,0.00027397,7]
[334426650,1723086641145,-503.32153423,0.00027397,7]
[334426652,1723086641156,-500.0,0.00027397,7]
[334426654,1723086641165,-500.0,0.00027397,7]
[334426656,1723086641175,-500.0,0.00027397,7]
[334426658,1723086641185,-443.20168161,0.00027397,7]
[334426660,1723086641194,-1789.24,0.00027397,7]
[334426663,1723086641204,-500.0,0.00027397,7]
[334426665,1723086641215,-500.0,0.00027397,7]